bitfinex/quotes_BTCUSD_20250208
["timestamp","ask_amount","ask_price","bid_price","bid_amount"]
[1739044891646,0.0534552,96736.0,96731.0,5.141e-05]
[1739044891881,0.002,96737.0,96731.0,5.141e-05]
[1739044892076,0.002,96736.0,96731.0,5.141e-05]
[1739044892335,0.002,96736.0,96731.0,0.15511941]
[1739044892689,0.004,96736.0,96731.0,0.15511941]
[1739044893070,0.002,96736.0,96731.0,0.15511941]
[1739044893295,0.002,96736.0,96731.0,5.141e-05]
[1739044893494,0.004,96736.0,96731.0,5.141e-05]
[1739044895015,0.002,96736.0,96731.0,5.141e-05]
[1739044895794,0.0380196,96735.0,96731.0,5.141e-05]
[1739044896287,0.002,96736.0,96731.0,5.141e-05]
[1739044896392,0.004,96736.0,96731.0,5.141e-05]
[1739044896804,0.155062,96735.0,96731.0,5.141e-05]
[1739044897247,0.157062,96735.0,96731.0,5.141e-05]
[1739044897465,0.16277815,96738.0,96731.0,5.141e-05]
[1739044897759,0.155061,96736.0,96731.0,5.141e-05]
[1739044898161,0.04987642,96737.0,96731.0,5.141e-05]
[1739044898506,0.15506,96737.0,96731.0,5.141e-05]
[1739044898706,0.155061,96737.0,96731.0,5.141e-05]
[1739044898966,0.155059,96737.0,96731.0,5.141e-05]
[1739044899166,0.155061,96736.0,96731.0,5.141e-05]
[1739044899438,0.32180604,96743.0,96731.0,5.141e-05]
[1739044899580,0.0528526,96742.0,96731.0,1.41e-06]
[1739044900200,0.155061,96737.0,96731.0,1.41e-06]
[1739044900392,0.152261,96737.0,96731.0,1.41e-06]
[1739044900595,0.15506,96737.0,96731.0,1.41e-06]
[1739044900991,0.155057,96739.0,96731.0,1.41e-06]
[1739044901204,0.155059,96737.0,96731.0,1.41e-06]
[1739044902776,0.155061,96736.0,96731.0,1.41e-06]
[1739044903136,0.206744,96738.0,96731.0,1.41e-06]
[1739044903313,0.155059,96737.0,96731.0,1.41e-06]
[1739044903726,0.22483742,96737.0,96731.0,1.41e-06]
[1739044904546,0.12924621,96743.0,96731.0,1.41e-06]
[1739044904547,0.155053,96741.0,96735.0,0.0765]
[1739044906351,0.12924621,96743.0,96735.0,0.0765]
[1739044906497,0.28429721,96743.0,96735.0,0.0765]
[1739044906705,0.155057,96739.0,96735.0,0.0765]
[1739044907821,0.155058,96738.0,96735.0,0.0765]
[1739044908072,0.155058,96738.0,96736.0,0.01484402]
[1739044908979,0.155057,96739.0,96736.0,0.01484402]
[1739044909322,0.155058,96738.0,96736.0,0.01484402]
[1739044911285,0.155059,96737.0,96736.0,0.01484402]
[1739044912166,0.155059,96737.0,96735.0,0.0765]
[1739044913328,0.0193884,96736.0,96735.0,0.0765]
[1739044913750,0.0193884,96736.0,96735.0,0.09138372]
[1739044915783,0.1744494,96736.0,96735.0,0.09138372]
[1739044916028,0.1744494,96736.0,96735.0,0.0765]
[1739044916140,0.18844324,96736.0,96735.0,0.0765]
[1739044916505,0.18844324,96736.0,96735.0,0.09138372]
[1739044918085,0.18844324,96736.0,96735.0,0.01488372]
[1739044918265,0.155067,96732.0,96731.0,1.41e-06]
[1739044918721,0.155067,96732.0,96731.0,0.01489191]
[1739044918929,0.155067,96732.0,96731.0,1.41e-06]
[1739044919136,0.1744554,96732.0,96731.0,1.41e-06]
[1739044920129,0.155067,96732.0,96731.0,1.41e-06]
[1739044921195,0.157067,96732.0,96731.0,1.41e-06]
[1739044922513,1.06655397,96732.0,96731.0,1.41e-06]
[1739044922730,1.58169897,96732.0,96731.0,1.41e-06]
[1739044922968,1.47336597,96732.0,96731.0,1.41e-06]
[1739044923175,1.74525227,96732.0,96731.0,1.41e-06]
[1739044923343,1.84775592,96732.0,96731.0,1.41e-06]
[1739044923543,1.73634792,96732.0,96731.0,1.41e-06]
[1739044923792,1.58895292,96732.0,96731.0,1.41e-06]
[1739044924198,1.56757027,96732.0,96731.0,1.41e-06]
[1739044924395,1.57257027,96732.0,96731.0,1.41e-06]
[1739044924734,1.57557027,96732.0,96731.0,1.41e-06]
[1739044925372,1.33897862,96732.0,96731.0,1.41e-06]
[1739044925789,1.28321762,96732.0,96731.0,1.41e-06]
[1739044928003,0.42094162,96732.0,96731.0,1.41e-06]
[1739044928386,2.78706862,96732.0,96731.0,1.41e-06]
[1739044928587,2.76655062,96732.0,96731.0,1.41e-06]
[1739044928864,2.76035027,96732.0,96731.0,1.41e-06]
[1739044929040,2.75735027,96732.0,96731.0,1.41e-06]
[1739044929177,2.67099027,96732.0,96731.0,0.00100141]
[1739044929376,2.67399027,96732.0,96731.0,0.00200141]
[1739044929604,2.62618227,96732.0,96731.0,0.00200141]
[1739044930419,2.62618227,96732.0,96731.0,0.00210811]
[1739044930849,2.64551754,96732.0,96731.0,0.00210811]
[1739044931929,2.67376315,96732.0,96731.0,0.00210811]
[1739044932977,2.67376315,96732.0,96723.0,0.0001067]
[1739044932978,0.15508,96724.0,96723.0,0.0001067]
[1739044933224,0.40758365,96724.0,96723.0,0.00016299]
[1739044933421,3.22141626,96724.0,96723.0,0.00016299]
[1739044933592,3.25711626,96724.0,96723.0,0.00016299]
[1739044933809,3.25711626,96724.0,96723.0,9.9e-07]
[1739044933810,3.57731626,96724.0,96723.0,9.9e-07]
[1739044934027,0.8873945,96724.0,96723.0,9.9e-07]
[1739044934727,0.8963945,96724.0,96723.0,9.9e-07]
[1739044935063,0.9053945,96724.0,96723.0,0.001]
[1739044935249,0.8963945,96724.0,96723.0,0.001]
[1739044935384,0.16,96715.0,96687.0,0.12964122]
[1739044935581,0.155138,96688.0,96687.0,0.12964122]
[1739044935783,0.155138,96688.0,96687.0,0.0469]
[1739044935987,0.402354,96688.0,96687.0,0.0469]
[1739044936187,0.572354,96688.0,96686.0,0.0795]
[1739044936386,0.155139,96687.0,96686.0,0.0795]
[1739044936907,0.60399621,96687.0,96686.0,0.0795]
[1739044937121,0.43601855,96687.0,96686.0,0.0795]
[1739044937467,0.34380955,96687.0,96686.0,0.0795]
[1739044937833,0.34480955,96687.0,96686.0,0.0795]
[1739044938079,0.34580955,96687.0,96686.0,0.0795]
[1739044938430,0.15718421,96687.0,96686.0,0.0795]
[1739044938640,0.21427163,96687.0,96686.0,0.0795]
[1739044939194,0.60932963,96687.0,96686.0,0.0795]
[1739044939697,0.54766463,96687.0,96686.0,0.0795]
[1739044939845,0.53528963,96687.0,96686.0,0.0795]
[1739044941962,0.27015821,96687.0,96686.0,0.0795]
[1739044942204,0.26030221,96687.0,96686.0,0.0795]
[1739044942409,0.26134221,96687.0,96686.0,0.0795]
[1739044942891,0.26671763,96687.0,96686.0,0.0795]
[1739044943109,0.26671763,96687.0,96686.0,0.0796068]
[1739044943927,0.35544339,96687.0,96686.0,0.0796068]
[1739044944359,0.26671763,96687.0,96686.0,0.0796068]
[1739044945823,0.28024868,96687.0,96686.0,0.0796068]
[1739044947500,0.28024868,96687.0,96686.0,0.0001068]
[1739044948966,0.17609068,96687.0,96686.0,0.0001068]
[1739044949548,0.34074468,96687.0,96686.0,0.0001068]
[1739044951247,0.41618885,96687.0,96686.0,0.0001068]
[1739044953647,0.155149,96681.0,96680.0,0.03484933]
[1739044954958,0.155149,96681.0,96678.0,0.0469]
[1739044954959,0.155152,96679.0,96678.0,0.03658274]
[1739044955359,0.17448007,96679.0,96678.0,0.03658274]
[1739044956894,0.17448007,96679.0,96678.0,0.03958274]
[1739044957275,0.17448007,96679.0,96678.0,0.04258274]
[1739044957897,0.21256466,96679.0,96678.0,0.04258274]
[1739044958153,0.21256466,96679.0,96678.0,0.12248274]
[1739044958832,0.01932807,96679.0,96678.0,0.12248274]
[1739044959967,0.01932807,96679.0,96678.0,0.27763674]
[1739044960356,0.155143,96685.0,96678.0,0.27763674]
[1739044960921,0.155143,96685.0,96678.0,0.12248274]
[1739044961132,0.155145,96684.0,96678.0,0.12248274]
[1739044961329,0.155145,96684.0,96678.0,0.11648274]
[1739044961880,0.155146,96683.0,96678.0,0.11648274]
[1739044962086,0.20475838,96683.0,96678.0,0.11648274]
[1739044962616,0.20475838,96683.0,96678.0,0.11748274]
[1739044962811,0.04961238,96683.0,96678.0,0.11748274]
[1739044963019,0.04961238,96683.0,96678.0,0.11848274]
[1739044963245,0.04305591,96682.0,96678.0,0.11748274]
[1739044963476,0.04305591,96682.0,96678.0,0.11848274]
[1739044963646,0.04305591,96682.0,96678.0,0.11748274]
[1739044963848,0.04305591,96682.0,96678.0,0.11848274]
[1739044964121,0.04305591,96682.0,96678.0,0.11648274]
[1739044964349,0.155147,96683.0,96678.0,0.11648274]
[1739044964550,0.155148,96682.0,96678.0,0.11948274]
[1739044964876,0.155147,96683.0,96678.0,0.11948274]
[1739044965913,0.155147,96683.0,96678.0,0.11848274]
[1739044966111,0.155147,96683.0,96678.0,0.11948274]
[1739044966292,0.03809567,96682.0,96678.0,0.11748274]
[1739044966831,0.03809567,96682.0,96678.0,0.11848274]
[1739044967032,0.03809567,96682.0,96678.0,0.07330119]
[1739044967271,0.03809567,96682.0,96678.0,0.07230119]
[1739044967466,0.19324367,96682.0,96678.0,0.07330119]
[1739044967668,0.19324367,96682.0,96678.0,0.07440799]
[1739044967973,0.155148,96682.0,96678.0,0.07440799]
[1739044969603,0.155152,96679.0,96678.0,0.07440799]
[1739044969788,0.206864,96682.0,96678.0,0.07440799]
[1739044970391,0.206864,96682.0,96678.0,0.07140799]
[1739044970684,0.155149,96681.0,96678.0,0.07140799]
[1739044970890,0.05878197,96680.0,96678.0,0.07740799]
[1739044971112,0.05878197,96680.0,96678.0,0.07440799]
[1739044971319,0.05878197,96680.0,96678.0,0.07140799]
[1739044971494,0.155149,96681.0,96678.0,0.07140799]
[1739044971694,0.01895168,96687.0,96678.0,0.07140799]
[1739044971908,0.155152,96679.0,96678.0,0.07140799]
[1739044972342,0.155152,96679.0,96678.0,0.07240799]
[1739044972537,0.155152,96679.0,96678.0,0.07440799]
[1739044972759,0.1913538,96679.0,96678.0,0.07340799]
[1739044973164,0.1913538,96679.0,96678.0,0.07140799]
[1739044973987,0.1913538,96679.0,96678.0,0.0001068]
[1739044975523,0.0362018,96679.0,96671.0,0.03034375]
[1739044975746,0.155159,96675.0,96671.0,0.03034375]
[1739044976577,0.001,96679.0,96671.0,0.03034375]
[1739044976778,0.002,96679.0,96671.0,0.03034375]
[1739044976980,0.155163,96672.0,96671.0,0.03134375]
[1739044977481,0.155163,96672.0,96671.0,0.03234375]
[1739044978647,0.155163,96672.0,96671.0,0.03134375]
[1739044978846,0.155163,96672.0,96671.0,0.03034375]
[1739044979040,0.15517,96668.0,96667.0,0.0458]
[1739044980223,0.15717,96668.0,96667.0,0.0458]
[1739044981875,0.15917,96668.0,96667.0,0.0458]
[1739044982607,0.16217,96668.0,96667.0,0.0458]
[1739044986861,0.16217,96668.0,96667.0,0.06079913]
[1739044987062,0.22678104,96668.0,96667.0,0.06079913]
[1739044988492,0.16217,96668.0,96667.0,0.0458]
[1739044988908,0.007,96668.0,96667.0,0.0458]
[1739044989109,0.007,96668.0,96667.0,0.06079913]
[1739044990979,0.007,96668.0,96667.0,0.06090593]
[1739044991276,0.16217,96668.0,96667.0,0.06090593]
[1739044991869,0.22109151,96668.0,96667.0,0.06090593]
[1739044992213,0.22109151,96668.0,96667.0,0.0001068]
[1739044992966,0.22109151,96668.0,96657.0,0.202987]
[1739044992967,0.06592151,96668.0,96657.0,0.0478]
[1739044993172,0.155186,96658.0,96657.0,0.0478]
[1739044993328,0.155189,96656.0,96655.0,0.0001067]
[1739044994593,0.155189,96656.0,96655.0,0.00055947]
[1739044995453,0.82828465,96656.0,96655.0,0.00355947]
[1739044995767,0.80419765,96656.0,96655.0,0.00355947]
[1739044995968,0.9067013,96656.0,96655.0,0.00355947]
[1739044996170,1.0567013,96656.0,96655.0,0.00355947]
[1739044996556,1.0567013,96656.0,96655.0,0.00455947]
[1739044997162,1.0567013,96656.0,96655.0,0.00355947]
[1739044997392,1.0587013,96656.0,96655.0,0.00355947]
[1739044997573,1.0587013,96656.0,96655.0,0.00055947]
[1739044997809,0.8404988,96656.0,96655.0,0.00055947]
[1739044998369,0.9956878,96656.0,96655.0,0.00055947]
[1739044998577,1.0046878,96656.0,96655.0,0.00155947]
[1739044998773,1.01510793,96656.0,96655.0,0.00155947]
[1739044999002,1.02410793,96656.0,96655.0,0.00155947]
[1739044999358,1.10620793,96656.0,96655.0,0.00155947]
[1739045000702,1.12737643,96656.0,96655.0,0.00155947]
[1739045004578,1.12760071,96656.0,96655.0,0.00155947]
[1739045005701,1.13760071,96656.0,96655.0,0.00155947]
[1739045006085,1.45780071,96656.0,96655.0,0.00155947]
[1739045007625,0.155215,96640.0,96634.0,0.0001067]
[1739045007779,1.85997215,96640.0,96634.0,0.0001067]
[1739045007987,2.33566215,96640.0,96639.0,0.00016741]
[1739045008213,2.33676215,96640.0,96639.0,0.00016741]
[1739045008389,1.98158115,96640.0,96639.0,0.00016741]
[1739045009044,0.43392015,96640.0,96639.0,0.00016741]
[1739045009251,0.43692015,96640.0,96639.0,0.00016741]
[1739045009396,2.49211315,96640.0,96639.0,0.00016741]
[1739045009592,2.51386915,96640.0,96639.0,0.00016741]
[1739045009982,2.53416289,96640.0,96639.0,0.00016741]
[1739045010812,2.53116289,96640.0,96639.0,0.00016741]
[1739045011212,2.53516289,96640.0,96639.0,0.00016741]
[1739045011819,2.54116289,96640.0,96639.0,0.00116741]
[1739045012237,2.54816289,96640.0,96639.0,0.00116741]
[1739045012819,2.54816289,96640.0,96639.0,0.00016741]
[1739045012820,2.54116289,96640.0,96639.0,0.00016741]
[1739045013020,2.54116289,96640.0,96627.0,0.0001067]
[1739045013021,0.305234,96628.0,96627.0,0.0001067]
[1739045013157,0.45895745,96628.0,96627.0,0.00017654]
[1739045013620,0.46433681,96628.0,96627.0,0.00017654]
[1739045013834,3.24992381,96628.0,96627.0,0.00017654]
[1739045014267,3.08126481,96628.0,96627.0,0.00017654]
[1739045014827,3.09026481,96628.0,96627.0,0.00017654]
[1739045015837,2.89682381,96628.0,96627.0,0.00017654]
[1739045016038,2.85100781,96628.0,96627.0,0.00017654]
[1739045016234,2.85100781,96628.0,96608.0,0.0817]
[1739045016235,0.305236,96627.0,96608.0,0.0817]
[1739045016422,0.305236,96627.0,96606.0,0.0452]
[1739045016423,3.04671379,96627.0,96626.0,0.00017726]
[1739045016617,2.99296979,96627.0,96626.0,0.00017726]
[1739045017433,3.00196979,96627.0,96626.0,0.00017726]
[1739045017972,3.01096979,96627.0,96626.0,0.00117726]
[1739045021579,2.96226279,96627.0,96626.0,0.00117726]
[1739045024708,0.305252,96617.0,96606.0,0.0452]
[1739045024884,2.94951335,96617.0,96616.0,0.00017739]
[1739045025115,2.49386581,96617.0,96616.0,0.00017739]
[1739045025445,2.64911781,96617.0,96616.0,0.00017739]
[1739045025641,0.43645181,96617.0,96616.0,0.00017739]
[1739045025885,3.22203881,96617.0,96616.0,0.00017739]
[1739045026091,3.23103881,96617.0,96616.0,0.00017739]
[1739045026286,2.59753081,96617.0,96616.0,0.00017739]
[1739045027283,2.60453081,96617.0,96616.0,0.00117739]
[1739045028595,2.6248341,96617.0,96616.0,0.00117739]
[1739045028815,2.3281241,96617.0,96616.0,0.00117739]
[1739045031122,2.34099162,96617.0,96616.0,0.00117739]
[1739045032416,0.155281,96599.0,96598.0,0.03591782]
[1739045032762,1.347082,96599.0,96598.0,0.04884773]
[1739045032964,1.01256,96599.0,96598.0,0.04884773]
[1739045033113,1.01256,96599.0,96598.0,0.03637003]
[1739045033966,1.01792981,96599.0,96598.0,0.03637003]
[1739045034361,0.58884381,96599.0,96598.0,0.03637003]
[1739045034582,0.56233281,96599.0,96598.0,0.03637003]
[1739045034724,0.54715181,96599.0,96598.0,0.03637003]
[1739045037416,0.62377306,96599.0,96598.0,0.03637003]
[1739045037623,0.55973395,96599.0,96598.0,0.03637003]
[1739045038448,0.47762195,96599.0,96598.0,0.03637003]
[1739045038656,0.01795195,96599.0,96598.0,0.03637003]
[1739045038859,0.17323295,96599.0,96598.0,0.03637003]
[1739045039271,0.01795195,96599.0,96598.0,0.03637003]
[1739045039502,0.17323295,96599.0,96598.0,0.03637003]
[1739045039675,0.17323295,96599.0,96598.0,0.03647683]
[1739045040597,0.27624695,96599.0,96598.0,0.03647683]
[1739045042509,0.01795195,96599.0,96598.0,0.03647683]
[1739045042678,0.17323295,96599.0,96598.0,0.03647683]
[1739045044636,0.17323295,96599.0,96598.0,0.04895453]
[1739045044795,0.17323295,96599.0,96598.0,0.03647683]
[1739045046462,0.27973295,96599.0,96598.0,0.03647683]
[1739045046964,0.17323295,96599.0,96598.0,0.03647683]
[1739045047165,0.32591495,96599.0,96598.0,0.03647683]
[1739045047528,0.17323295,96599.0,96598.0,0.03647683]
[1739045047714,0.28983295,96599.0,96598.0,0.03647683]
[1739045048164,0.17323295,96599.0,96598.0,0.03647683]
[1739045048370,0.68144345,96599.0,96598.0,0.00055901]
[1739045048515,0.68564445,96599.0,96598.0,0.00055901]
[1739045050317,0.7286536,96599.0,96598.0,0.00055901]
[1739045050933,0.7491697,96599.0,96598.0,0.00055901]
[1739045051583,0.57993675,96599.0,96598.0,0.00055901]
[1739045051788,0.72993675,96599.0,96598.0,0.00055901]
[1739045052147,0.89921775,96599.0,96598.0,0.00055901]
[1739045052339,0.89921775,96599.0,96598.0,1e-08]
[1739045052340,1.0835214,96599.0,96598.0,1e-08]
[1739045052629,0.64276706,96599.0,96598.0,1e-08]
[1739045052839,0.63476706,96599.0,96598.0,1e-08]
[1739045053244,0.64276706,96599.0,96598.0,1e-08]
[1739045053859,0.65176706,96599.0,96598.0,1e-08]
[1739045054736,0.66076706,96599.0,96598.0,1e-08]
[1739045054915,0.66612654,96599.0,96598.0,1e-08]
[1739045055132,0.64012654,96599.0,96598.0,1e-08]
[1739045055359,0.64912654,96599.0,96598.0,1e-08]
[1739045055558,0.65812654,96599.0,96598.0,1e-08]
[1739045056468,0.97832654,96599.0,96598.0,1e-08]
[1739045056709,0.98560147,96599.0,96598.0,1e-08]
[1739045061944,0.97796147,96599.0,96598.0,1e-08]
[1739045062252,0.98560147,96599.0,96598.0,1e-08]
[1739045064396,0.98530079,96599.0,96598.0,1e-08]
[1739045066052,0.01,96597.0,96580.0,0.0769]
[1739045066262,0.155308,96582.0,96580.0,0.0769]
[1739045066460,0.78664165,96582.0,96580.0,0.0769]
[1739045067447,0.78664165,96582.0,96575.0,0.0781]
[1739045067646,0.76979165,96582.0,96575.0,0.0781]
[1739045068356,0.79121781,96582.0,96575.0,0.0781]
[1739045069084,0.79821781,96582.0,96575.0,0.0781]
[1739045069242,0.90072146,96582.0,96575.0,0.0781]
[1739045075390,0.89060046,96582.0,96575.0,0.0781]
[1739045076174,0.38874146,96582.0,96575.0,0.0781]
[1739045076574,1.13459946,96582.0,96575.0,0.0781]
[1739045076986,1.12106846,96582.0,96575.0,0.0781]
[1739045077193,1.05171546,96582.0,96575.0,0.0781]
[1739045077389,1.05171546,96582.0,96571.0,0.0002]
[1739045077545,1.20171546,96582.0,96571.0,0.0002]
[1739045077758,1.20707239,96582.0,96571.0,0.0002]
[1739045077955,1.22823527,96582.0,96571.0,0.0002]
[1739045078208,0.305324,96572.0,96571.0,0.0002]
[1739045078411,3.20105465,96572.0,96571.0,0.0002]
[1739045078568,3.12482865,96572.0,96571.0,0.0002]
[1739045078773,2.82871165,96572.0,96571.0,0.0002]
[1739045079434,2.69466465,96572.0,96571.0,0.0002]
[1739045079630,2.8061683,96572.0,96571.0,0.0002]
[1739045080169,2.6339773,96572.0,96571.0,0.0002]
[1739045080390,2.6529773,96572.0,96571.0,0.0002]
[1739045080609,2.7313773,96572.0,96571.0,0.0002]
[1739045080835,2.7223773,96572.0,96571.0,0.0002]
[1739045081047,2.7313773,96572.0,96571.0,0.0002]
[1739045081878,2.7087403,96572.0,96571.0,0.0002]
[1739045082087,2.5587403,96572.0,96571.0,0.0002]
[1739045082243,2.45623665,96572.0,96571.0,0.0002]
[1739045083070,2.46838905,96572.0,96571.0,0.0002]
[1739045085610,2.61838905,96572.0,96571.0,0.0002]
[1739045085782,2.36400405,96572.0,96571.0,0.0002]
[1739045086182,2.68420405,96572.0,96571.0,0.0002]
[1739045086551,2.7867077,96572.0,96571.0,0.0002]
[1739045088235,2.4601617,96572.0,96571.0,0.0002]
[1739045088350,2.35001805,96572.0,96571.0,0.0002]
[1739045088551,1.77728405,96572.0,96571.0,0.0002]
[1739045088750,0.7158014,96572.0,96571.0,0.0465]
[1739045088957,0.7158014,96572.0,96571.0,0.1225]
[1739045088958,0.3554874,96572.0,96571.0,0.1225]
[1739045089164,0.1854764,96572.0,96571.0,0.1225]
[1739045089371,0.1854764,96572.0,96571.0,0.1226068]
[1739045089811,0.1764764,96572.0,96571.0,0.1226068]
[1739045090433,0.3006654,96572.0,96571.0,0.1226068]
[1739045090631,0.2916654,96572.0,96571.0,0.1226068]
[1739045090841,0.1764764,96572.0,96571.0,0.1226068]
[1739045091017,0.2969944,96572.0,96571.0,0.1226068]
[1739045091224,0.1754764,96572.0,96571.0,0.1226068]
[1739045092402,0.1824764,96572.0,96571.0,0.1226068]
[1739045101843,0.18270068,96572.0,96571.0,0.1226068]
[1739045102456,0.02737668,96572.0,96571.0,0.13486748]
[1739045102741,0.02737668,96572.0,96571.0,0.1226068]
[1739045103678,0.01937668,96572.0,96571.0,0.1226068]
[1739045103892,0.02037668,96572.0,96571.0,0.1226068]
[1739045104086,0.02237668,96572.0,96571.0,0.1226068]
[1739045104661,0.02237668,96572.0,96571.0,0.13516106]
[1739045104878,0.01022428,96572.0,96571.0,0.34024667]
[1739045105482,0.00222428,96572.0,96571.0,0.34024667]
[1739045105671,0.00222428,96572.0,96571.0,0.79505032]
[1739045105871,0.00322428,96572.0,96571.0,0.79505032]
[1739045106276,0.00022428,96572.0,96571.0,0.79505032]
[1739045107534,0.00022428,96572.0,96571.0,0.79805032]
[1739045108628,0.00122428,96572.0,96571.0,0.80005032]
[1739045109030,0.00122428,96572.0,96571.0,0.80205032]
[1739045109586,0.00022428,96572.0,96571.0,0.80005032]
[1739045109739,0.00122428,96572.0,96571.0,0.79705032]
[1739045110254,0.00122428,96572.0,96571.0,0.79905032]
[1739045113514,0.00122428,96572.0,96571.0,0.74929071]
[1739045124911,0.00022428,96572.0,96571.0,0.74529071]
[1739045125116,0.00122428,96572.0,96571.0,0.74729071]
[1739045125341,0.00222428,96572.0,96571.0,0.74929071]
[1739045127663,0.00222428,96572.0,96571.0,1.28649071]
[1739045128260,0.00222428,96572.0,96571.0,1.38899436]
[1739045136179,0.00222428,96572.0,96571.0,1.42129179]
[1739045136591,0.00222428,96572.0,96571.0,1.38899436]
[1739045137073,0.00222428,96572.0,96571.0,1.42129176]
[1739045152483,0.08274122,96600.0,96595.0,0.155287]
[1739045152669,0.08274122,96600.0,96595.0,0.25778865]
[1739045152823,0.06425493,96609.0,96597.0,0.155284]
[1739045153028,0.155271,96605.0,96598.0,0.01005172]
[1739045153229,0.155271,96605.0,96595.0,0.25778965]
[1739045153488,0.207022,96608.0,96596.0,0.01005423]
[1739045153692,0.005,96600.0,96596.0,0.01005423]
[1739045154737,0.155272,96605.0,96596.0,0.01005423]
[1739045155099,0.162272,96605.0,96596.0,0.01005423]
[1739045155455,0.0804,96604.0,96596.0,0.01005423]
[1739045155639,0.004,96600.0,96596.0,0.01005423]
[1739045156062,0.004,96600.0,96596.0,0.01105423]
[1739045156489,0.0804,96604.0,96596.0,0.01005423]
[1739045156937,0.0854,96604.0,96596.0,0.16633923]
[1739045157112,0.005,96600.0,96596.0,0.01005423]
[1739045157539,0.0854,96604.0,96596.0,0.01005423]
[1739045157717,0.0924,96604.0,96596.0,0.01105423]
[1739045158468,0.004,96600.0,96596.0,0.01105423]
[1739045159010,0.004,96600.0,96596.0,0.01205423]
[1739045159145,0.004,96600.0,96596.0,0.01105423]
[1739045159342,0.0854,96604.0,96596.0,0.01205423]
[1739045159565,0.00922408,96600.0,96596.0,0.01205423]
[1739045160259,0.00422408,96600.0,96596.0,0.01105423]
[1739045161238,0.00422408,96600.0,96596.0,0.01205423]
[1739045161444,0.00422408,96600.0,96597.0,0.155283]
[1739045161688,0.00422408,96600.0,96596.0,0.01205423]
[1739045161992,0.00422408,96600.0,96598.0,0.01005172]
[1739045162343,0.00422408,96600.0,96596.0,0.002]
[1739045162551,0.00422408,96600.0,96599.0,0.01005046]
[1739045162750,0.00422408,96600.0,96596.0,0.001]
[1739045162932,0.00022408,96600.0,96596.0,0.001]
[1739045163088,0.00522408,96600.0,96596.0,0.001]
[1739045163286,0.00922408,96600.0,96596.0,0.001]
[1739045163519,0.00422408,96600.0,96595.0,0.25778965]
[1739045163855,0.00922408,96600.0,96599.0,0.001]
[1739045164242,0.00422408,96600.0,96595.0,0.25778965]
[1739045164786,0.00922408,96600.0,96596.0,0.001]
[1739045164967,0.01322408,96600.0,96596.0,0.001]
[1739045165142,0.00922408,96600.0,96596.0,0.001]
[1739045165570,0.233982,96598.0,96597.0,0.01005298]
[1739045165780,0.831259,96598.0,96597.0,0.01005298]
[1739045165971,0.155295,96590.0,96580.0,0.5372]
[1739045166175,0.07570813,96590.0,96581.0,0.155309]
[1739045166420,0.233994,96591.0,96580.0,0.5372]
[1739045166636,0.0787,96597.0,96593.0,0.15529]
[1739045166853,0.00922408,96600.0,96595.0,0.001]
[1739045167058,0.155285,96596.0,96595.0,0.001]
[1739045167207,0.155285,96596.0,96581.0,0.10353894]
[1739045167413,0.155285,96596.0,96588.0,0.155298]
[1739045167817,0.155285,96596.0,96589.0,0.155297]
[1739045168012,0.155285,96596.0,96581.0,0.10250365]
[1739045168219,0.155285,96596.0,96587.0,0.155299]
[1739045168561,0.207041,96599.0,96588.0,0.155297]
[1739045168749,0.155287,96596.0,96588.0,0.155297]
[1739045168952,0.157287,96596.0,96588.0,0.155297]
[1739045169153,0.160287,96596.0,96589.0,0.01006304]
[1739045169333,0.164287,96596.0,96589.0,0.01006304]
[1739045169657,0.155287,96596.0,96589.0,0.01006304]
[1739045169976,0.006,96596.0,96589.0,0.01006304]
[1739045170094,0.006,96596.0,96589.0,0.16535904]
[1739045170331,0.155291,96593.0,96589.0,0.01006304]
[1739045170608,0.155293,96592.0,96589.0,0.01006304]
[1739045170891,0.207053,96594.0,96589.0,0.001]
[1739045171068,0.01,96596.0,96589.0,0.001]
[1739045171489,0.15529,96594.0,96589.0,0.001]
[1739045171886,0.22082082,96594.0,96589.0,0.001]
[1739045172491,0.15529,96594.0,96588.0,0.0001067]
[1739045172809,0.15929,96594.0,96590.0,0.01006178]
[1739045173014,0.15929,96594.0,96589.0,0.01006304]
[1739045173309,0.003,96593.0,96590.0,0.01006178]
[1739045173687,0.15529,96594.0,96588.0,0.0001067]
[1739045173886,0.15529,96594.0,96591.0,0.01006052]
[1739045174214,0.15529,96594.0,96588.0,0.0001067]
[1739045174368,0.15529,96594.0,96589.0,0.01006304]
[1739045174575,0.16029,96594.0,96590.0,0.001]
[1739045175011,0.16429,96594.0,96591.0,0.01006052]
[1739045175571,0.155293,96592.0,96590.0,0.001]
[1739045175794,0.28335528,96594.0,96590.0,0.001]
[1739045176136,0.008,96594.0,96588.0,0.0001067]
[1739045176339,0.155297,96589.0,96588.0,0.0011067]
[1739045176754,0.155297,96589.0,96588.0,0.0001067]
[1739045177796,0.157297,96589.0,96588.0,0.0001067]
[1739045179960,0.159297,96589.0,96588.0,0.0001067]
[1739045180167,0.22678046,96589.0,96588.0,0.0001067]
[1739045180577,0.159297,96589.0,96588.0,0.0001067]
[1739045182035,0.904346,96589.0,96588.0,0.0001067]
[1739045182282,0.79233,96589.0,96588.0,0.0001067]
[1739045183722,0.699535,96589.0,96588.0,0.0001067]
[1739045183929,0.584047,96589.0,96588.0,0.0001067]
[1739045184765,0.514497,96589.0,96588.0,0.0001067]
[1739045189888,0.664497,96589.0,96588.0,0.0001067]
[1739045190086,0.84620065,96589.0,96588.0,0.0001067]
[1739045190339,0.85156659,96589.0,96588.0,0.0001067]
[1739045191764,0.84956659,96589.0,96588.0,0.0001067]
[1739045192064,0.85356659,96589.0,96588.0,0.0001067]
[1739045192270,0.96507024,96589.0,96588.0,0.0011067]
[1739045195944,0.98598675,96589.0,96588.0,0.0011067]
[1739045199632,0.63078675,96589.0,96588.0,0.0011067]
[1739045199866,2.26821475,96589.0,96588.0,0.0011067]
[1739045200066,2.0892711,96589.0,96588.0,0.0011067]
[1739045200262,1.5632931,96589.0,96588.0,0.0011067]
[1739045207870,0.305324,96572.0,96571.0,0.00075897]
[1739045208083,1.92166565,96572.0,96571.0,0.00075897]
[1739045208381,1.6492783,96572.0,96571.0,0.00075897]
[1739045209255,1.6522783,96572.0,96571.0,0.00075897]
[1739045209804,1.6562783,96572.0,96571.0,0.00075897]
[1739045210687,1.661638,96572.0,96571.0,0.00075897]
[1739045210993,1.68050249,96572.0,96571.0,0.00075897]
[1739045212879,1.70161077,96572.0,96571.0,0.00075897]
[1739045213595,1.68050249,96572.0,96571.0,0.00075897]
[1739045214679,1.67650249,96572.0,96571.0,0.00075897]
[1739045214903,1.67350249,96572.0,96571.0,0.00075897]
[1739045215198,1.69050249,96572.0,96571.0,0.00075897]
[1739045222883,0.155355,96553.0,96552.0,0.0823]